[Event "Late Titled Tuesday Blitz February 8 2022"]
[White "Xiong, Jeffery"]
[Black "Kosakowski, Jakub"]
[WhiteFideId "2047640"]
[BlackFideId "1185080"]
[WhiteElo "2727"]
[BlackElo "2476"]
[Result "1-0"]
[Round "03"]
[TimeControl "180+1"]
[Date "2022.02.08"]
[WhiteClock "0:00:08"]
[BlackClock "0:00:04"]

1. d4 {[%clk 0:02:59]}  Nf6 {[%clk 0:02:58]} 2. c4 {[%clk 0:03:00]}  e6 {[%clk 0:02:58]} 3. Nc3 {[%clk 0:03:00]}  Bb4 {[%clk 0:02:58]} 4. a3 {[%clk 0:03:00]}  Bxc3+ {[%clk 0:02:56]} 5. bxc3 {[%clk 0:03:01]}  b6 {[%clk 0:02:56]} 6. f3 {[%clk 0:03:01]}  Nc6 {[%clk 0:02:56]} 7. e4 {[%clk 0:03:01]}  Ba6 {[%clk 0:02:57]} 8. Bg5 {[%clk 0:02:50]}  h6 {[%clk 0:02:56]} 9. Bh4 {[%clk 0:02:50]}  Qc8 {[%clk 0:02:56]} 10. Bd3 {[%clk 0:02:38]}  Na5 {[%clk 0:02:54]} 11. Qe2 {[%clk 0:02:38]}  c5 {[%clk 0:02:47]} 12. e5 {[%clk 0:02:03]}  Nh5 {[%clk 0:02:36]} 13. Nh3 {[%clk 0:02:03]}  g5 {[%clk 0:01:32]} 14. Bf2 {[%clk 0:02:02]}  cxd4 {[%clk 0:01:32]} 15. cxd4 {[%clk 0:01:44]}  Bxc4 {[%clk 0:01:31]} 16. O-O {[%clk 0:01:45]}  Qa6 {[%clk 0:01:28]} 17. Bxc4 {[%clk 0:01:39]}  Qxc4 {[%clk 0:01:28]} 18. Qe3 {[%clk 0:01:23]}  Qd5 {[%clk 0:01:21]} 19. Rac1 {[%clk 0:01:21]}  Nc4 {[%clk 0:01:20]} 20. Qe2 {[%clk 0:01:20]}  b5 {[%clk 0:01:18]} 21. a4 {[%clk 0:01:20]}  a6 {[%clk 0:01:18]} 22. f4 {[%clk 0:01:18]}  Nxf4 {[%clk 0:01:17]} 23. Nxf4 {[%clk 0:01:18]}  gxf4 {[%clk 0:01:18]} 24. Kh1 {[%clk 0:01:14]}  Rg8 {[%clk 0:01:15]} 25. Bg1 {[%clk 0:01:12]}  d6 {[%clk 0:00:50]} 26. exd6 {[%clk 0:01:01]}  Kd7 {[%clk 0:00:50]} 27. Rxf4 {[%clk 0:00:57]}  f5 {[%clk 0:00:50]} 28. Rf2 {[%clk 0:00:45]}  Rg6 {[%clk 0:00:46]} 29. axb5 {[%clk 0:00:42]}  axb5 {[%clk 0:00:46]} 30. Qh5 {[%clk 0:00:38]}  Rag8 {[%clk 0:00:44]} 31. Ra1 {[%clk 0:00:38]}  Kxd6 {[%clk 0:00:20]} 32. Ra6+ {[%clk 0:00:27]}  Kc7 {[%clk 0:00:20]} 33. Raa2 {[%clk 0:00:18]}  Ne3 {[%clk 0:00:15]} 34. Qh4 {[%clk 0:00:07]}  Rg5 {[%clk 0:00:07]} 35. Qf4+ {[%clk 0:00:04]}  Kb7 {[%clk 0:00:07]} 36. Qxe3 {[%clk 0:00:05]}  Rc8 {[%clk 0:00:07]} 37. Qa3 {[%clk 0:00:05]}  Rc1 {[%clk 0:00:03]} 38. Qa8+ {[%clk 0:00:04]}  Kc7 {[%clk 0:00:03]} 39. Rfc2+ {[%clk 0:00:04]}  Rxc2 {[%clk 0:00:03]} 40. Rxc2+ {[%clk 0:00:05]}  Kd7 {[%clk 0:00:03]} 41. Qa7+ {[%clk 0:00:06]}  Kd8 {[%clk 0:00:03]} 42. Qb8+ {[%clk 0:00:06]}  Ke7 {[%clk 0:00:03]} 43. Rc7+ {[%clk 0:00:07]}  Kf6 {[%clk 0:00:04]} 44. Qf8+ {[%clk 0:00:07]}  Kg6 {[%clk 0:00:04]} 45. Qf7# {[%clk 0:00:08]} 1-0


[Site "https://www.chess.com"]

[Event "Late Titled Tuesday Blitz February 8 2022"]
[White "Yang, Qindong"]
[Black "Fishbein, Alexander"]
[WhiteFideId "8603758"]
[BlackFideId "2000377"]
[WhiteElo "2101"]
[BlackElo "2442"]
[Result "1-0"]
[Round "03"]
[TimeControl "180+1"]
[Date "2022.02.09"]
[WhiteClock "0:00:20"]
[BlackClock "0:00:33"]

1. d4 {[%clk 0:02:57]}  Nf6 {[%clk 0:02:59]} 2. c4 {[%clk 0:02:56]}  g6 {[%clk 0:02:59]} 3. Nf3 {[%clk 0:02:54]}  Bg7 {[%clk 0:02:59]} 4. g3 {[%clk 0:02:55]}  O-O {[%clk 0:02:59]} 5. Bg2 {[%clk 0:02:56]}  d6 {[%clk 0:02:59]} 6. O-O {[%clk 0:02:56]}  Nc6 {[%clk 0:03:00]} 7. Nc3 {[%clk 0:02:56]}  e5 {[%clk 0:03:00]} 8. d5 {[%clk 0:02:56]}  Nb8 {[%clk 0:02:59]} 9. e4 {[%clk 0:02:57]}  a5 {[%clk 0:02:59]} 10. Ne1 {[%clk 0:02:57]}  Na6 {[%clk 0:02:59]} 11. Nd3 {[%clk 0:02:58]}  Nd7 {[%clk 0:02:59]} 12. Be3 {[%clk 0:02:57]}  Ndc5 {[%clk 0:02:59]} 13. Nxc5 {[%clk 0:02:48]}  Nxc5 {[%clk 0:03:00]} 14. a3 {[%clk 0:02:48]}  Bd7 {[%clk 0:02:56]} 15. b4 {[%clk 0:02:45]}  axb4 {[%clk 0:02:56]} 16. axb4 {[%clk 0:02:46]}  Rxa1 {[%clk 0:02:55]} 17. Qxa1 {[%clk 0:02:46]}  Nb3 {[%clk 0:02:55]} 18. Qd1 {[%clk 0:02:47]}  Nd4 {[%clk 0:02:55]} 19. Ne2 {[%clk 0:02:46]}  Ba4 {[%clk 0:02:37]} 20. Qd2 {[%clk 0:02:22]}  Nc2 {[%clk 0:02:35]} 21. Bh6 {[%clk 0:02:13]}  Bxh6 {[%clk 0:02:29]} 22. Qxh6 {[%clk 0:02:14]}  Nxb4 {[%clk 0:02:27]} 23. Rb1 {[%clk 0:02:14]}  Na6 {[%clk 0:02:13]} 24. Rxb7 {[%clk 0:02:14]}  Nc5 {[%clk 0:02:12]} 25. Rb2 {[%clk 0:01:56]}  Qf6 {[%clk 0:02:09]} 26. Nc3 {[%clk 0:01:52]}  Bb3 {[%clk 0:02:05]} 27. Nb5 {[%clk 0:01:31]}  Bxc4 {[%clk 0:02:00]} 28. Nxc7 {[%clk 0:01:31]}  Nd3 {[%clk 0:01:40]} 29. Rc2 {[%clk 0:01:22]}  Rb8 {[%clk 0:01:37]} 30. Qe3 {[%clk 0:00:52]}  Rb1+ {[%clk 0:01:35]} 31. Bf1 {[%clk 0:00:52]}  Nb2 {[%clk 0:01:23]} 32. Rc1 {[%clk 0:00:45]}  Nd1 {[%clk 0:01:14]} 33. Rxb1 {[%clk 0:00:37]}  Nxe3 {[%clk 0:01:05]} 34. Rb8+ {[%clk 0:00:37]}  Kg7 {[%clk 0:01:05]} 35. Ne8+ {[%clk 0:00:38]}  Kh6 {[%clk 0:01:05]} 36. Nxf6 {[%clk 0:00:38]}  Nxf1 {[%clk 0:01:03]} 37. Rb2 {[%clk 0:00:34]}  Bd3 {[%clk 0:00:58]} 38. Ne8 {[%clk 0:00:28]}  f5 {[%clk 0:00:46]} 39. exf5 {[%clk 0:00:26]}  gxf5 {[%clk 0:00:45]} 40. Nxd6 {[%clk 0:00:26]}  Kg5 {[%clk 0:00:43]} 41. Ne8 {[%clk 0:00:21]}  e4 {[%clk 0:00:33]} 42. d6 {[%clk 0:00:21]}  e3 {[%clk 0:00:33]} 43. fxe3 {[%clk 0:00:20]} 1-0


[Site "https://www.chess.com"]

[Event "Late Titled Tuesday Blitz February 8 2022"]
[White "Yoo, Christopher Woojin"]
[Black "Dourerassou, Jonathan"]
[WhiteFideId "30909694"]
[BlackFideId "628050"]
[WhiteElo "2105"]
[BlackElo "2513"]
[Result "1/2-1/2"]
[Round "03"]
[TimeControl "180+1"]
[Date "2022.02.08"]
[WhiteClock "0:00:07"]
[BlackClock "0:00:14"]

1. e4 {[%clk 0:03:00]}  d5 {[%clk 0:02:44]} 2. exd5 {[%clk 0:03:00]}  Qxd5 {[%clk 0:02:45]} 3. Nc3 {[%clk 0:02:59]}  Qd8 {[%clk 0:02:46]} 4. d4 {[%clk 0:02:58]}  Nf6 {[%clk 0:02:46]} 5. Bc4 {[%clk 0:02:57]}  Bg4 {[%clk 0:02:45]} 6. Nf3 {[%clk 0:02:53]}  e6 {[%clk 0:02:45]} 7. h3 {[%clk 0:02:49]}  Bxf3 {[%clk 0:02:45]} 8. Qxf3 {[%clk 0:02:50]}  c6 {[%clk 0:02:45]} 9. Be3 {[%clk 0:02:47]}  Nbd7 {[%clk 0:02:44]} 10. O-O {[%clk 0:02:47]}  Bd6 {[%clk 0:02:41]} 11. Bd3 {[%clk 0:02:35]}  Nd5 {[%clk 0:02:37]} 12. Ne4 {[%clk 0:02:31]}  Bc7 {[%clk 0:02:35]} 13. Bd2 {[%clk 0:02:29]}  N7f6 {[%clk 0:02:33]} 14. Nc5 {[%clk 0:02:27]}  b6 {[%clk 0:02:18]} 15. Na6 {[%clk 0:02:19]}  Bd6 {[%clk 0:02:12]} 16. c4 {[%clk 0:02:15]}  Ne7 {[%clk 0:02:12]} 17. Bg5 {[%clk 0:02:01]}  Qc8 {[%clk 0:02:04]} 18. c5 {[%clk 0:01:44]}  bxc5 {[%clk 0:02:02]} 19. Bxf6 {[%clk 0:01:44]}  gxf6 {[%clk 0:02:01]} 20. Qxf6 {[%clk 0:01:45]}  Rg8 {[%clk 0:02:00]} 21. Nxc5 {[%clk 0:01:38]}  Nd5 {[%clk 0:01:53]} 22. Qf3 {[%clk 0:01:37]}  Nf4 {[%clk 0:01:47]} 23. Ne4 {[%clk 0:01:31]}  Qd8 {[%clk 0:01:41]} 24. g3 {[%clk 0:01:24]}  Nxh3+ {[%clk 0:01:39]} 25. Kh1 {[%clk 0:01:09]}  Be7 {[%clk 0:01:35]} 26. Rac1 {[%clk 0:00:54]}  Rc8 {[%clk 0:01:29]} 27. Rxc6 {[%clk 0:00:44]}  Rxc6 {[%clk 0:01:26]} 28. Bb5 {[%clk 0:00:44]}  Qxd4 {[%clk 0:01:21]} 29. Bxc6+ {[%clk 0:00:42]}  Kf8 {[%clk 0:01:20]} 30. b3 {[%clk 0:00:23]}  Rg6 {[%clk 0:01:08]} 31. Rd1 {[%clk 0:00:20]}  Qb6 {[%clk 0:00:58]} 32. Bd7 {[%clk 0:00:15]}  Qb7 {[%clk 0:00:55]} 33. Kg2 {[%clk 0:00:09]}  Rh6 {[%clk 0:00:54]} 34. Rh1 {[%clk 0:00:08]}  Qxd7 {[%clk 0:00:41]} 35. Rxh3 {[%clk 0:00:08]}  Rxh3 {[%clk 0:00:41]} 36. Kxh3 {[%clk 0:00:09]}  Qd5 {[%clk 0:00:40]} 37. Kg2 {[%clk 0:00:08]}  a5 {[%clk 0:00:39]} 38. g4 {[%clk 0:00:06]}  a4 {[%clk 0:00:39]} 39. bxa4 {[%clk 0:00:05]}  Qxa2 {[%clk 0:00:40]} 40. Nc3 {[%clk 0:00:06]}  Qb3 {[%clk 0:00:38]} 41. Qc6 {[%clk 0:00:05]}  Qb4 {[%clk 0:00:34]} 42. Ne4 {[%clk 0:00:04]}  h6 {[%clk 0:00:31]} 43. f3 {[%clk 0:00:03]}  Qb2+ {[%clk 0:00:29]} 44. Kh3 {[%clk 0:00:03]}  Qa3 {[%clk 0:00:27]} 45. Qc8+ {[%clk 0:00:03]}  Kg7 {[%clk 0:00:27]} 46. Qc3+ {[%clk 0:00:04]}  Qxc3 {[%clk 0:00:23]} 47. Nxc3 {[%clk 0:00:04]}  Kf6 {[%clk 0:00:22]} 48. f4 {[%clk 0:00:03]}  Bd8 {[%clk 0:00:20]} 49. Ne4+ {[%clk 0:00:03]}  Ke7 {[%clk 0:00:18]} 50. f5 {[%clk 0:00:03]}  exf5 {[%clk 0:00:16]} 51. gxf5 {[%clk 0:00:04]}  Kd7 {[%clk 0:00:16]} 52. Kg4 {[%clk 0:00:05]}  Kc6 {[%clk 0:00:14]} 53. Kh5 {[%clk 0:00:03]}  Kd5 {[%clk 0:00:15]} 54. Ng3 {[%clk 0:00:02]}  Bc7 {[%clk 0:00:13]} 55. Nf1 {[%clk 0:00:02]}  Ke5 {[%clk 0:00:13]} 56. Ne3 {[%clk 0:00:03]}  Bb8 {[%clk 0:00:11]} 57. Kxh6 {[%clk 0:00:02]}  Ba7 {[%clk 0:00:11]} 58. Nc4+ {[%clk 0:00:02]}  Kxf5 {[%clk 0:00:11]} 59. Nd6+ {[%clk 0:00:03]}  Ke6 {[%clk 0:00:11]} 60. Nxf7 {[%clk 0:00:03]}  Kxf7 {[%clk 0:00:12]} 61. Kg5 {[%clk 0:00:04]}  Ke6 {[%clk 0:00:12]} 62. Kf4 {[%clk 0:00:05]}  Kd5 {[%clk 0:00:13]} 63. Kf3 {[%clk 0:00:05]}  Kc4 {[%clk 0:00:14]} 64. Ke2 {[%clk 0:00:06]}  Kb3 {[%clk 0:00:14]} 65. Kf3 {[%clk 0:00:07]}  Kxa4 {[%clk 0:00:14]} 1/2-1/2


[Site "https://www.chess.com"]

[Event "Late Titled Tuesday Blitz February 8 2022"]
[White "Zhurbinsky, David"]
[Black "Sarkar, Justin"]
[WhiteFideId "2072904"]
[BlackFideId "2010011"]
[WhiteElo "2577"]
[BlackElo "2038"]
[Result "1/2-1/2"]
[Round "03"]
[TimeControl "180+1"]
[Date "2022.02.09"]
[WhiteClock "0:00:07"]
[BlackClock "0:00:03"]

1. e4 {[%clk 0:03:00]}  c5 {[%clk 0:02:59]} 2. Nf3 {[%clk 0:03:01]}  Nc6 {[%clk 0:02:58]} 3. c4 {[%clk 0:03:01]}  e5 {[%clk 0:02:56]} 4. Nc3 {[%clk 0:03:01]}  d6 {[%clk 0:02:54]} 5. Be2 {[%clk 0:03:01]}  f5 {[%clk 0:02:51]} 6. d3 {[%clk 0:03:00]}  Nf6 {[%clk 0:02:50]} 7. a3 {[%clk 0:02:58]}  Be7 {[%clk 0:02:41]} 8. Rb1 {[%clk 0:02:58]}  a5 {[%clk 0:02:28]} 9. O-O {[%clk 0:02:57]}  O-O {[%clk 0:02:26]} 10. h3 {[%clk 0:02:51]}  f4 {[%clk 0:02:20]} 11. Nh2 {[%clk 0:02:50]}  Nd4 {[%clk 0:02:09]} 12. b4 {[%clk 0:02:47]}  axb4 {[%clk 0:02:03]} 13. axb4 {[%clk 0:02:48]}  g5 {[%clk 0:01:54]} 14. Bd2 {[%clk 0:02:29]}  Qe8 {[%clk 0:01:34]} 15. Nd5 {[%clk 0:02:21]}  Nxd5 {[%clk 0:01:29]} 16. cxd5 {[%clk 0:02:21]}  Nxe2+ {[%clk 0:01:00]} 17. Qxe2 {[%clk 0:02:22]}  cxb4 {[%clk 0:00:59]} 18. Rxb4 {[%clk 0:02:13]}  h5 {[%clk 0:00:59]} 19. d4 {[%clk 0:02:05]}  exd4 {[%clk 0:00:58]} 20. Rc1 {[%clk 0:01:55]}  Qg6 {[%clk 0:00:52]} 21. Rxd4 {[%clk 0:01:46]}  g4 {[%clk 0:00:45]} 22. hxg4 {[%clk 0:01:40]}  hxg4 {[%clk 0:00:45]} 23. g3 {[%clk 0:01:32]}  fxg3 {[%clk 0:00:26]} 24. fxg3 {[%clk 0:01:29]}  Bf6 {[%clk 0:00:25]} 25. Rdc4 {[%clk 0:01:18]}  Be5 {[%clk 0:00:23]} 26. Qe3 {[%clk 0:01:05]}  Bd7 {[%clk 0:00:15]} 27. Rc7 {[%clk 0:01:01]}  Rf7 {[%clk 0:00:09]} 28. Rxb7 {[%clk 0:00:57]}  Raf8 {[%clk 0:00:08]} 29. Bc3 {[%clk 0:00:41]}  Rf3 {[%clk 0:00:05]} 30. Nxf3 {[%clk 0:00:23]}  Rxf3 {[%clk 0:00:02]} 31. Qxf3 {[%clk 0:00:08]}  gxf3 {[%clk 0:00:01]} 32. Bxe5 {[%clk 0:00:08]}  dxe5 {[%clk 0:00:01]} 33. Kf2 {[%clk 0:00:08]}  Qg5 {[%clk 0:00:01]} 34. Rcc7 {[%clk 0:00:05]}  Qd2+ {[%clk 0:00:01]} 35. Kxf3 {[%clk 0:00:05]}  Qd3+ {[%clk 0:00:01]} 36. Kg2 {[%clk 0:00:05]}  Qe2+ {[%clk 0:00:01]} 37. Kg1 {[%clk 0:00:05]}  Qe1+ {[%clk 0:00:02]} 38. Kh2 {[%clk 0:00:05]}  Qf2+ {[%clk 0:00:02]} 39. Kh1 {[%clk 0:00:06]}  Qf1+ {[%clk 0:00:02]} 40. Kh2 {[%clk 0:00:06]}  Qf2+ {[%clk 0:00:02]} 41. Kh1 {[%clk 0:00:07]}  Qf1+ {[%clk 0:00:03]} 42. Kh2 {[%clk 0:00:07]}  Qf2+ {[%clk 0:00:03]} 1/2-1/2


[Site "https://www.chess.com"]

[Event "Late Titled Tuesday Blitz February 8 2022"]
[White "volunteers1998"]
[Black "Migot, Tangi"]
[BlackFideId "662445"]
[WhiteElo "2231"]
[BlackElo "2544"]
[Result "0-1"]
[Round "03"]
[TimeControl "180+1"]
[Date "2022.02.09"]
[WhiteClock "0:00:01"]
[BlackClock "0:00:21"]

1. e4 {[%clk 0:02:58]}  c6 {[%clk 0:03:00]} 2. d4 {[%clk 0:02:58]}  Na6 {[%clk 0:03:01]} 3. Nc3 {[%clk 0:02:50]}  Nc7 {[%clk 0:02:59]} 4. f4 {[%clk 0:02:47]}  d5 {[%clk 0:02:59]} 5. e5 {[%clk 0:02:45]}  h5 {[%clk 0:02:59]} 6. Bd3 {[%clk 0:02:42]}  Bg4 {[%clk 0:02:56]} 7. Nf3 {[%clk 0:02:39]}  Nh6 {[%clk 0:02:55]} 8. h3 {[%clk 0:02:36]}  Bf5 {[%clk 0:02:53]} 9. Be3 {[%clk 0:02:33]}  e6 {[%clk 0:02:48]} 10. Qd2 {[%clk 0:02:30]}  Bxd3 {[%clk 0:02:44]} 11. Qxd3 {[%clk 0:02:27]}  Nf5 {[%clk 0:02:44]} 12. O-O-O {[%clk 0:02:22]}  h4 {[%clk 0:02:36]} 13. Rhg1 {[%clk 0:02:11]}  b5 {[%clk 0:02:29]} 14. Bf2 {[%clk 0:02:05]}  Be7 {[%clk 0:02:28]} 15. Kb1 {[%clk 0:01:52]}  a5 {[%clk 0:02:27]} 16. Ne2 {[%clk 0:01:49]}  g6 {[%clk 0:02:22]} 17. g4 {[%clk 0:01:43]}  hxg3 {[%clk 0:02:21]} 18. Nxg3 {[%clk 0:01:42]}  Nh4 {[%clk 0:02:19]} 19. Nxh4 {[%clk 0:01:34]}  Bxh4 {[%clk 0:02:20]} 20. Qf3 {[%clk 0:01:23]}  Bxg3 {[%clk 0:02:14]} 21. Rxg3 {[%clk 0:01:20]}  b4 {[%clk 0:02:13]} 22. Rh1 {[%clk 0:01:09]}  Qe7 {[%clk 0:02:02]} 23. Rg5 {[%clk 0:01:03]}  Kd7 {[%clk 0:01:51]} 24. h4 {[%clk 0:01:01]}  Rh6 {[%clk 0:01:39]} 25. h5 {[%clk 0:00:57]}  Rah8 {[%clk 0:01:38]} 26. Rh4 {[%clk 0:00:51]}  Nb5 {[%clk 0:01:16]} 27. Qg4 {[%clk 0:00:39]}  Rxh5 {[%clk 0:01:11]} 28. Rhxh5 {[%clk 0:00:36]}  Rxh5 {[%clk 0:01:07]} 29. Rxh5 {[%clk 0:00:35]}  gxh5 {[%clk 0:01:07]} 30. Qxh5 {[%clk 0:00:33]}  Kc7 {[%clk 0:01:06]} 31. Bh4 {[%clk 0:00:29]}  Qd7 {[%clk 0:01:05]} 32. Qh8 {[%clk 0:00:28]}  Kb7 {[%clk 0:01:03]} 33. Qd8 {[%clk 0:00:24]}  Qxd8 {[%clk 0:00:55]} 34. Bxd8 {[%clk 0:00:25]}  Nxd4 {[%clk 0:00:54]} 35. Bxa5 {[%clk 0:00:22]}  c5 {[%clk 0:00:54]} 36. Bd8 {[%clk 0:00:20]}  Ne2 {[%clk 0:00:49]} 37. Bg5 {[%clk 0:00:17]}  d4 {[%clk 0:00:49]} 38. b3 {[%clk 0:00:15]}  Kc6 {[%clk 0:00:48]} 39. Kb2 {[%clk 0:00:11]}  Kd5 {[%clk 0:00:48]} 40. a4 {[%clk 0:00:09]}  bxa3+ {[%clk 0:00:42]} 41. Kxa3 {[%clk 0:00:09]}  Ke4 {[%clk 0:00:39]} 42. b4 {[%clk 0:00:09]}  cxb4+ {[%clk 0:00:36]} 43. Kxb4 {[%clk 0:00:09]}  Nxf4 {[%clk 0:00:36]} 44. Kc4 {[%clk 0:00:09]}  Ng6 {[%clk 0:00:33]} 45. c3 {[%clk 0:00:07]}  Nxe5+ {[%clk 0:00:30]} 46. Kb3 {[%clk 0:00:07]}  Nf3 {[%clk 0:00:27]} 47. Bh6 {[%clk 0:00:06]}  dxc3 {[%clk 0:00:18]} 48. Kxc3 {[%clk 0:00:05]}  f5 {[%clk 0:00:19]} 49. Kc2 {[%clk 0:00:05]}  e5 {[%clk 0:00:20]} 50. Kd1 {[%clk 0:00:05]}  f4 {[%clk 0:00:20]} 51. Ke2 {[%clk 0:00:05]}  Nd4+ {[%clk 0:00:20]} 52. Kf2 {[%clk 0:00:04]}  Kf5 {[%clk 0:00:20]} 53. Bg7 {[%clk 0:00:04]}  Ne6 {[%clk 0:00:20]} 54. Bh8 {[%clk 0:00:03]}  e4 {[%clk 0:00:21]} 55. Ke2 {[%clk 0:00:03]}  e3 {[%clk 0:00:21]} 56. Kf3 {[%clk 0:00:03]}  Ng5+ {[%clk 0:00:21]} 57. Ke2 {[%clk 0:00:03]}  Ke4 {[%clk 0:00:21]} 58. Bf6 {[%clk 0:00:02]}  Ne6 {[%clk 0:00:22]} 59. Be7 {[%clk 0:00:01]}  f3+ {[%clk 0:00:21]} 60. Ke1 {[%clk 0:00:01]}  f2+ {[%clk 0:00:22]} 61. Ke2 {[%clk 0:00:01]}  Nf4+ {[%clk 0:00:21]} 62. Kf1 {[%clk 0:00:01]}  Kf3 {[%clk 0:00:21]} 0-1


[Site "https://www.chess.com"]

[Event "Late Titled Tuesday Blitz February 8 2022"]
[White "yondaymebr"]
[Black "Tang, Andrew"]
[BlackFideId "2059630"]
[WhiteElo "2534"]
[BlackElo "2946"]
[Result "0-1"]
[Round "03"]
[TimeControl "180+1"]
[Date "2022.02.09"]
[WhiteClock "0:00:03"]
[BlackClock "0:01:22"]

1. c4 {[%clk 0:03:00]}  e6 {[%clk 0:02:59]} 2. Nf3 {[%clk 0:03:00]}  d5 {[%clk 0:02:59]} 3. e3 {[%clk 0:03:01]}  Nf6 {[%clk 0:02:59]} 4. Nc3 {[%clk 0:03:01]}  Be7 {[%clk 0:02:59]} 5. b3 {[%clk 0:03:01]}  O-O {[%clk 0:03:00]} 6. Bb2 {[%clk 0:03:01]}  c5 {[%clk 0:03:00]} 7. cxd5 {[%clk 0:02:59]}  Nxd5 {[%clk 0:03:01]} 8. Nxd5 {[%clk 0:02:59]}  Qxd5 {[%clk 0:02:58]} 9. Bc4 {[%clk 0:02:59]}  Qh5 {[%clk 0:02:57]} 10. g4 {[%clk 0:02:59]}  Qh3 {[%clk 0:02:53]} 11. Rg1 {[%clk 0:02:55]}  Nc6 {[%clk 0:02:53]} 12. Rg3 {[%clk 0:02:53]}  Qh6 {[%clk 0:02:53]} 13. g5 {[%clk 0:02:02]}  Qh5 {[%clk 0:02:51]} 14. h4 {[%clk 0:02:03]}  Bd6 {[%clk 0:02:45]} 15. Rg1 {[%clk 0:01:55]}  e5 {[%clk 0:02:43]} 16. Be2 {[%clk 0:01:49]}  e4 {[%clk 0:02:43]} 17. Nd4 {[%clk 0:01:22]}  Qxh4 {[%clk 0:02:41]} 18. Nxc6 {[%clk 0:01:11]}  bxc6 {[%clk 0:02:36]} 19. Qc2 {[%clk 0:01:01]}  Re8 {[%clk 0:02:36]} 20. O-O-O {[%clk 0:00:52]}  Qxf2 {[%clk 0:02:28]} 21. Bc4 {[%clk 0:00:50]}  Be6 {[%clk 0:02:28]} 22. Qc3 {[%clk 0:00:36]}  Bf8 {[%clk 0:02:27]} 23. Rdf1 {[%clk 0:00:28]}  Qh2 {[%clk 0:02:26]} 24. Rh1 {[%clk 0:00:22]}  Qd6 {[%clk 0:02:21]} 25. g6 {[%clk 0:00:17]}  hxg6 {[%clk 0:01:49]} 26. Rh4 {[%clk 0:00:09]}  Bxc4 {[%clk 0:01:37]} 27. Rfh1 {[%clk 0:00:09]}  f6 {[%clk 0:01:33]} 28. Qxc4+ {[%clk 0:00:08]}  Qd5 {[%clk 0:01:33]} 29. Qc3 {[%clk 0:00:07]}  a5 {[%clk 0:01:28]} 30. Rh8+ {[%clk 0:00:07]}  Kf7 {[%clk 0:01:28]} 31. R1h7 {[%clk 0:00:08]}  Re6 {[%clk 0:01:25]} 32. Rh3 {[%clk 0:00:05]}  a4 {[%clk 0:01:25]} 33. R8h7 {[%clk 0:00:02]}  axb3 {[%clk 0:01:25]} 34. axb3 {[%clk 0:00:03]}  Qd3 {[%clk 0:01:23]} 35. Qc4 {[%clk 0:00:02]}  Qxc4+ {[%clk 0:01:23]} 36. bxc4 {[%clk 0:00:02]}  Ra4 {[%clk 0:01:24]} 37. Kc2 {[%clk 0:00:03]}  Rxc4+ {[%clk 0:01:24]} 38. Kb3 {[%clk 0:00:04]}  Rb4+ {[%clk 0:01:24]} 39. Kc2 {[%clk 0:00:05]}  c4 {[%clk 0:01:25]} 40. Bc3 {[%clk 0:00:06]}  Ra4 {[%clk 0:01:26]} 41. Rh1 {[%clk 0:00:06]}  g5 {[%clk 0:01:26]} 42. R7h2 {[%clk 0:00:06]}  Bd6 {[%clk 0:01:26]} 43. Rf2 {[%clk 0:00:06]}  Be5 {[%clk 0:01:27]} 44. Rb1 {[%clk 0:00:06]}  Bxc3 {[%clk 0:01:26]} 45. Kxc3 {[%clk 0:00:07]}  Rd6 {[%clk 0:01:27]} 46. Rb7+ {[%clk 0:00:06]}  Kg6 {[%clk 0:01:26]} 47. d4 {[%clk 0:00:04]}  cxd3 {[%clk 0:01:25]} 48. Rb3 {[%clk 0:00:03]}  Rd5 {[%clk 0:01:21]} 49. Rfb2 {[%clk 0:00:03]}  Rc5+ {[%clk 0:01:21]} 50. Kd2 {[%clk 0:00:04]}  Rac4 {[%clk 0:01:21]} 51. Ke1 {[%clk 0:00:04]}  Rc1+ {[%clk 0:01:20]} 52. Kf2 {[%clk 0:00:05]}  R5c2+ {[%clk 0:01:20]} 53. Rxc2 {[%clk 0:00:04]}  Rxc2+ {[%clk 0:01:21]} 54. Kg3 {[%clk 0:00:05]}  d2 {[%clk 0:01:22]} 55. Rb7 {[%clk 0:00:03]}  d1=Q {[%clk 0:01:22]} 56. Kh3 {[%clk 0:00:03]}  Qf3# {[%clk 0:01:22]} 0-1


[Site "https://www.chess.com"]

[Event "Late Titled Tuesday Blitz February 8 2022"]
[White "Aggelis, Nikolaos"]
[Black "Daianu, Cristian-Clement"]
[WhiteFideId "4213220"]
[BlackFideId "1208926"]
[WhiteElo "2154"]
[BlackElo "2159"]
[Result "0-1"]
[Round "04"]
[TimeControl "180+1"]
[Date "2022.02.09"]
[WhiteClock "0:01:43"]
[BlackClock "0:01:23"]

1. d4 {[%clk 0:02:57]}  d5 {[%clk 0:02:59]} 2. g3 {[%clk 0:02:58]}  e6 {[%clk 0:02:59]} 3. Bg2 {[%clk 0:02:58]}  Nf6 {[%clk 0:03:00]} 4. Nf3 {[%clk 0:02:54]}  Be7 {[%clk 0:02:57]} 5. O-O {[%clk 0:02:45]}  O-O {[%clk 0:02:58]} 6. c4 {[%clk 0:02:45]}  c6 {[%clk 0:02:53]} 7. Nbd2 {[%clk 0:02:44]}  Nbd7 {[%clk 0:02:51]} 8. b3 {[%clk 0:02:43]}  Ne4 {[%clk 0:02:50]} 9. Bb2 {[%clk 0:02:43]}  f5 {[%clk 0:02:50]} 10. Ne5 {[%clk 0:02:42]}  Nxe5 {[%clk 0:02:46]} 11. dxe5 {[%clk 0:02:43]}  Bd7 {[%clk 0:02:41]} 12. f3 {[%clk 0:02:42]}  Nxd2 {[%clk 0:02:40]} 13. Qxd2 {[%clk 0:02:43]}  Be8 {[%clk 0:02:41]} 14. Qc2 {[%clk 0:02:41]}  f4 {[%clk 0:02:36]} 15. g4 {[%clk 0:02:38]}  Bg6 {[%clk 0:02:35]} 16. Qc3 {[%clk 0:02:37]}  a5 {[%clk 0:02:31]} 17. a3 {[%clk 0:02:34]}  Bc5+ {[%clk 0:02:28]} 18. Kh1 {[%clk 0:02:33]}  Qb6 {[%clk 0:02:29]} 19. Rac1 {[%clk 0:02:29]}  Be3 {[%clk 0:02:26]} 20. Rcd1 {[%clk 0:02:28]}  d4 {[%clk 0:02:23]} 21. Rxd4 {[%clk 0:02:25]}  Bxd4 {[%clk 0:02:22]} 22. Qxd4 {[%clk 0:02:26]}  Qxd4 {[%clk 0:02:23]} 23. Bxd4 {[%clk 0:02:26]}  Rad8 {[%clk 0:02:20]} 24. Bc5 {[%clk 0:02:26]}  Rf7 {[%clk 0:02:19]} 25. Bd6 {[%clk 0:02:25]}  h5 {[%clk 0:02:06]} 26. h3 {[%clk 0:02:14]}  hxg4 {[%clk 0:02:04]} 27. fxg4 {[%clk 0:02:14]}  Bc2 {[%clk 0:01:59]} 28. b4 {[%clk 0:02:11]}  axb4 {[%clk 0:01:59]} 29. axb4 {[%clk 0:02:12]}  Ra8 {[%clk 0:01:54]} 30. Rc1 {[%clk 0:02:11]}  Bb3 {[%clk 0:01:54]} 31. b5 {[%clk 0:02:09]}  Ra2 {[%clk 0:01:47]} 32. bxc6 {[%clk 0:02:05]}  bxc6 {[%clk 0:01:47]} 33. Bxc6 {[%clk 0:02:04]}  Rxe2 {[%clk 0:01:46]} 34. c5 {[%clk 0:01:57]}  f3 {[%clk 0:01:42]} 35. Bb5 {[%clk 0:01:51]}  Bd5 {[%clk 0:01:24]} 36. Bxe2 {[%clk 0:01:43]}  fxe2+ {[%clk 0:01:25]} 37. Kg1 {[%clk 0:01:43]}  Bc4 {[%clk 0:01:23]} 0-1


[Site "https://www.chess.com"]